bitfinex-derivatives/quotes_BNBF0:USTF0_20251225
["timestamp","ask_amount","ask_price","bid_price","bid_amount"]
[1766664122252,1.1951467,837.63,836.76,0.89259529]
[1766664122449,1.1951467,837.62,836.76,0.89259529]
[1766664122653,1.1951467,837.61,836.76,0.89259529]
[1766664122852,1.1951467,837.6,836.76,0.89259529]
[1766664123051,1.1951467,837.59,836.76,0.89259529]
[1766664123258,1.1951467,837.58,836.76,0.89259529]
[1766664123453,1.1951467,837.57,836.76,0.89259529]
[1766664123753,0.20779469,837.68,836.76,0.89259529]
[1766664123955,1.19514835,837.67,836.76,0.89259529]
[1766664124159,1.19514835,837.66,836.76,0.89259529]
[1766664124359,1.19514835,837.65,836.77,0.89259529]
[1766664124653,1.19514835,837.64,836.77,0.89259529]
[1766664124857,1.19514835,837.63,836.77,0.89259529]
[1766664125058,1.19514835,837.62,836.77,0.89259529]
[1766664125355,1.19514835,837.61,836.77,0.89259529]
[1766664125556,1.19514835,837.6,836.77,0.89259529]
[1766664125756,1.19514835,837.59,836.77,0.89259529]
[1766664126055,1.19514835,837.58,836.77,0.89259529]
[1766664126256,1.19514835,837.57,836.77,0.89259529]
[1766664126456,0.20779469,837.68,836.77,0.89259529]
[1766664126659,1.19514755,837.67,836.77,0.89259529]
[1766664126858,1.19514755,837.66,836.77,0.89259529]
[1766664127056,1.19514755,837.65,836.77,0.89259529]
[1766664127256,1.19514755,837.64,836.77,0.89259529]
[1766664127461,1.19514755,837.63,836.77,0.89259529]
[1766664127756,1.19514755,837.62,836.77,0.89259529]
[1766664127960,1.19514755,837.61,836.77,0.89259529]
[1766664128160,1.19514755,837.6,836.77,0.89259529]
[1766664128361,1.19514755,837.59,836.78,0.89259529]
[1766664128561,1.19514755,837.58,836.79,0.89259529]
[1766664128758,0.20779469,837.68,836.79,0.89259529]
[1766664128963,1.19512748,837.67,836.79,0.89259529]
[1766664129258,1.19512748,837.66,836.79,0.89259529]
[1766664129457,1.19512748,837.65,836.79,0.89259529]
[1766664129661,1.19512748,837.64,836.79,0.89259529]
[1766664129861,1.19512748,837.63,836.79,0.89259529]
[1766664130061,1.19512748,837.62,836.8,0.89259529]
[1766664130257,1.19512748,837.61,836.8,0.89259529]
[1766664130561,1.19512748,837.6,836.8,0.89259529]
[1766664130761,1.19512748,837.59,836.8,0.89259529]
[1766664130962,1.19512748,837.58,836.8,0.89259529]
[1766664131162,1.19512748,837.58,836.65,1.19097318]
[1766664131163,0.20779469,837.68,836.81,0.89259529]
[1766664131463,1.19511627,837.67,836.81,0.89259529]
[1766664131764,1.19511627,837.66,836.83,0.89259529]
[1766664132063,1.19511627,837.65,836.83,0.89259529]
[1766664132263,1.19511627,837.64,836.83,0.89259529]
[1766664132559,1.19511627,837.63,836.83,0.89259529]
[1766664132863,1.19511627,837.62,836.83,0.89259529]
[1766664133064,1.19511627,837.61,836.83,0.89259529]
[1766664133363,0.20779469,837.68,835.99,0.01029497]
[1766664133364,1.19511627,837.6,836.84,0.89259529]
[1766664133664,1.19511627,837.59,836.84,0.89259529]
[1766664133858,1.19511627,837.58,836.84,0.89259529]
[1766664134060,1.19511627,837.57,836.84,0.89259529]
[1766664134262,1.19509621,837.56,836.84,0.89259529]
[1766664134463,1.10144335,837.68,836.85,0.89259529]
[1766664134662,1.19509621,837.67,836.85,0.89259529]
[1766664134862,1.19509621,837.66,836.85,0.89259529]
[1766664135063,1.19509621,837.65,836.86,0.89259529]
[1766664135263,1.19509621,837.64,836.86,0.89259529]
[1766664135462,1.19509621,837.63,836.87,0.89259529]
[1766664135667,1.19509621,837.62,836.87,0.89259529]
[1766664135867,1.19509621,837.61,836.87,0.89259529]
[1766664136167,1.19509621,837.6,836.87,0.89259529]
[1766664136364,1.19509621,837.59,836.89,0.89259529]
[1766664136569,1.19509621,837.58,836.89,0.89259529]
[1766664136767,1.19509621,837.57,836.89,0.89259529]
[1766664136966,1.19509621,837.56,836.89,0.89259529]
[1766664137167,1.19509621,837.55,836.89,0.89259529]
[1766664137364,1.19507591,837.54,836.91,0.89259529]
[1766664137565,1.19507591,837.53,836.91,0.89259529]
[1766664137866,0.89364866,837.65,836.91,0.89259529]
[1766664138071,1.19507591,837.64,836.91,0.89259529]
[1766664138270,1.19507591,837.63,836.91,0.89259529]
[1766664138471,1.19507591,837.62,836.91,0.89259529]
[1766664138768,1.19507591,837.61,836.91,0.89259529]
[1766664139068,1.19507591,837.6,836.91,0.89259529]
[1766664139266,1.19507591,837.59,836.91,0.89259529]
[1766664139466,1.19507591,837.58,836.91,0.89259529]
[1766664139671,0.89364866,837.65,836.91,0.89259529]
[1766664139672,1.19507591,837.57,836.91,0.89259529]
[1766664139869,1.19507591,837.56,836.91,0.89259529]
[1766664140067,1.19507591,837.55,836.91,0.89259529]
[1766664140272,1.19507591,837.54,836.91,0.89259529]
[1766664140473,1.19507591,837.53,836.91,0.89259529]
[1766664140674,0.89364866,837.65,836.91,0.89259529]
[1766664140874,1.19507602,837.64,836.91,0.89259529]
[1766664141074,1.19507602,837.63,836.91,0.89259529]
[1766664141274,1.19507602,837.62,836.91,0.89259529]
[1766664141474,1.19507602,837.61,836.91,0.89259529]
[1766664141672,1.19507602,837.6,836.91,0.89259529]
[1766664141974,1.19507602,837.59,836.91,0.89259529]
[1766664142172,1.19507602,837.58,836.91,0.89259529]
[1766664142370,1.19507602,837.57,836.91,0.89259529]
[1766664142571,1.19507602,837.56,836.91,0.89259529]
[1766664142771,1.19507602,837.55,836.91,0.89259529]
[1766664143073,1.19507602,837.54,836.91,0.89259529]
[1766664143272,1.19507602,837.53,836.91,0.89259529]
[1766664143573,0.89364866,837.65,836.91,0.89259529]
[1766664143783,1.19507602,837.64,836.91,0.89259529]
[1766664143976,1.19507602,837.63,836.91,0.89259529]
[1766664144175,1.19507602,837.62,836.91,0.89259529]
[1766664144373,1.19507602,837.61,836.91,0.89259529]
[1766664144677,1.19507602,837.6,836.91,0.89259529]
[1766664144877,1.19507602,837.59,836.91,0.89259529]
[1766664145071,1.19507602,837.58,836.91,0.89259529]
[1766664145277,1.19507602,837.57,836.91,0.89259529]
[1766664145577,1.19507602,837.56,836.91,0.89259529]
[1766664145775,1.19507602,837.55,836.91,0.89259529]
[1766664146075,1.19507602,837.54,836.91,0.89259529]
[1766664146279,1.19507602,837.53,836.91,0.89259529]
[1766664146477,0.89364866,837.65,836.91,0.89259529]
[1766664146682,1.19507662,837.64,836.91,0.89259529]
[1766664146882,1.19507662,837.63,836.91,0.89259529]
[1766664147078,1.19507662,837.62,836.91,0.89259529]
[1766664147283,1.19507662,837.61,836.91,0.89259529]
[1766664147583,1.19507662,837.6,836.91,0.89259529]
[1766664147784,1.19507662,837.59,836.91,0.89259529]
[1766664148079,1.19507662,837.58,836.91,0.89259529]
[1766664148280,1.19507662,837.57,836.91,0.89259529]
[1766664148484,1.19507662,837.56,836.91,0.89259529]
[1766664148680,1.19507662,837.55,836.91,0.89259529]
[1766664148885,1.19507662,837.54,836.91,0.89259529]
[1766664149084,1.19507662,837.53,836.91,0.89259529]
[1766664149385,0.89364866,837.65,836.91,0.89259529]
[1766664149582,1.19507662,837.64,836.91,0.89259529]
[1766664149786,1.19507662,837.63,836.91,0.89259529]
[1766664150084,1.19507662,837.62,836.91,0.89259529]
[1766664150284,1.19507662,837.61,836.91,0.89259529]
[1766664150485,1.19507662,837.6,836.91,0.89259529]
[1766664150684,1.19507662,837.59,836.91,0.89259529]
[1766664150882,1.19507662,837.58,836.91,0.89259529]
[1766664151081,1.19507662,837.57,836.91,0.89259529]
[1766664151286,1.19507662,837.56,836.91,0.89259529]
[1766664151485,0.89364866,837.65,836.91,0.89259529]
[1766664151486,1.19507662,837.55,836.91,0.89259529]
[1766664151687,1.19507662,837.54,836.91,0.89259529]
[1766664151982,1.19507662,837.53,836.91,0.89259529]
[1766664152186,0.89364866,837.65,836.91,0.89259529]
[1766664152386,1.19507638,837.64,836.91,0.89259529]
[1766664152584,1.19507638,837.63,836.91,0.89259529]
[1766664152883,1.19507638,837.62,836.91,0.89259529]
[1766664153086,1.19507638,837.61,836.91,0.89259529]
[1766664153286,1.19507638,837.6,836.91,0.89259529]
[1766664153483,1.19507638,837.59,836.91,0.89259529]
[1766664153686,1.19507638,837.58,836.91,0.89259529]
[1766664153884,1.19507638,837.57,836.91,0.89259529]
[1766664154087,1.19507638,837.56,836.91,0.89259529]
[1766664154283,1.19507638,837.55,836.91,0.89259529]
[1766664154488,1.19507638,837.54,836.91,0.89259529]
[1766664154689,1.19507638,837.53,836.91,0.89259529]
[1766664154984,0.89364866,837.65,836.91,0.89259529]
[1766664155289,1.19507626,837.64,836.91,0.89259529]
[1766664155588,1.19507626,837.63,836.91,0.89259529]
[1766664155785,1.19507626,837.62,836.91,0.89259529]
[1766664156089,1.19507626,837.61,836.91,0.89259529]
[1766664156289,1.19507626,837.6,836.91,0.89259529]
[1766664156484,1.19507626,837.59,836.91,0.89259529]
[1766664156686,1.19507626,837.58,836.91,0.89259529]
[1766664156889,1.19507626,837.57,836.91,0.89259529]
[1766664157090,1.19507626,837.56,836.91,0.89259529]
[1766664157386,1.19507626,837.55,836.91,0.89259529]
[1766664157586,1.19507626,837.54,836.91,0.89259529]
[1766664157792,1.19507626,837.53,836.91,0.89259529]
[1766664158090,0.89364866,837.65,836.91,0.89259529]
[1766664158287,1.19507612,837.64,836.91,0.89259529]
[1766664158485,1.19507612,837.63,836.91,0.89259529]
[1766664158687,1.19507612,837.62,836.91,0.89259529]
[1766664158986,1.19507612,837.61,836.91,0.89259529]
[1766664159190,1.19507612,837.6,836.91,0.89259529]
[1766664159388,1.19507612,837.59,836.91,0.89259529]
[1766664159591,1.19507612,837.58,836.91,0.89259529]
[1766664159788,1.19507612,837.57,836.91,0.89259529]
[1766664159992,1.19507612,837.56,836.91,0.89259529]
[1766664160194,1.19507612,837.55,836.91,0.89259529]
[1766664160490,1.19507612,837.54,836.91,0.89259529]
[1766664160691,1.19507612,837.53,836.91,0.89259529]
[1766664160894,0.89364866,837.65,836.91,0.89259529]
[1766664161094,1.19507612,837.64,836.91,0.89259529]
[1766664161290,1.19507612,837.63,836.91,0.89259529]
[1766664161491,1.19507612,837.62,836.91,0.89259529]
[1766664161696,1.19507612,837.61,836.91,0.89259529]
[1766664161992,1.19507612,837.6,836.91,0.89259529]
[1766664162196,1.19507612,837.59,836.91,0.89259529]
[1766664162396,1.19507612,837.58,836.91,0.89259529]
[1766664162690,1.19507612,837.57,836.91,0.89259529]
[1766664162896,1.19507612,837.56,836.91,0.89259529]
[1766664163097,1.19507612,837.55,836.91,0.89259529]
[1766664163394,1.19507612,837.54,836.91,0.89259529]
[1766664163593,1.19507612,837.53,836.91,0.89259529]
[1766664163797,0.89364866,837.65,836.91,0.89259529]
[1766664163997,1.19507623,837.64,836.91,0.89259529]
[1766664164196,1.19507623,837.63,836.91,0.89259529]
[1766664164396,1.19507623,837.62,836.92,0.89259529]
[1766664164599,1.19507623,837.61,836.92,0.89259529]
[1766664164799,1.19507623,837.6,836.92,0.89259529]
[1766664164999,1.19507623,837.59,836.92,0.89259529]
[1766664165198,1.19507623,837.58,836.92,0.89259529]
[1766664165398,1.19507623,837.57,836.92,0.89259529]
[1766664165696,1.19507623,837.56,836.92,0.89259529]
[1766664165896,1.19507623,837.55,836.92,0.89259529]
[1766664166095,1.19507623,837.54,836.92,0.89259529]
[1766664166299,1.19507623,837.53,836.92,0.89259529]
[1766664166500,1.19507623,837.52,836.92,0.89259529]
[1766664166799,0.89364866,837.64,836.92,0.89259529]
[1766664166999,1.19507671,837.63,836.92,0.89259529]
[1766664167195,1.19507671,837.62,836.92,0.89259529]
[1766664167400,1.19507671,837.61,836.92,0.89259529]
[1766664167600,0.89364866,837.64,836.92,0.89259529]
[1766664167601,1.19507671,837.6,836.92,0.89259529]
[1766664167800,1.19507671,837.59,836.92,0.89259529]
[1766664168001,1.19507671,837.58,836.92,0.89259529]
[1766664168202,1.19507671,837.57,836.92,0.89259529]
[1766664168403,1.19507671,837.56,836.92,0.89259529]
[1766664168598,1.19507671,837.55,836.92,0.89259529]
[1766664168797,1.19507671,837.54,836.92,0.89259529]
[1766664168997,1.19507671,837.53,836.92,0.89259529]
[1766664169197,1.19507671,837.52,836.92,0.89259529]
[1766664169500,0.89364866,837.64,836.92,0.89259529]
[1766664169701,1.19507718,837.63,836.92,0.89259529]
[1766664169998,1.19507718,837.62,836.92,0.89259529]
[1766664170197,1.19507718,837.61,836.92,0.89259529]
[1766664170397,1.19507718,837.6,836.92,0.89259529]
[1766664170698,1.19507718,837.59,836.92,0.89259529]
[1766664170899,1.19507718,837.58,836.92,0.89259529]
[1766664171097,1.19507718,837.57,836.92,0.89259529]
[1766664171302,1.19507718,837.56,836.92,0.89259529]
[1766664171598,1.19507718,837.55,836.92,0.89259529]
[1766664171897,1.19507718,837.54,836.92,0.89259529]
[1766664172101,1.19507718,837.53,836.92,0.89259529]
[1766664172300,1.19507718,837.52,836.93,0.89259529]
[1766664172498,1.19507718,837.51,836.93,0.89259529]
[1766664172698,0.89364866,837.63,836.93,0.89259529]
[1766664172896,1.19507694,837.62,836.93,0.89259529]
[1766664173097,1.19507694,837.61,836.93,0.89259529]
[1766664173299,1.19507694,837.6,836.93,0.89259529]
[1766664173501,1.19507694,837.59,836.93,0.89259529]
[1766664173699,1.19507694,837.58,836.93,0.89259529]
[1766664173902,1.19507694,837.57,836.93,0.89259529]
[1766664174097,1.19507694,837.56,836.93,0.89259529]
[1766664174300,1.19507694,837.55,836.93,0.89259529]
[1766664174504,1.19507694,837.54,836.93,0.89259529]
[1766664174704,1.19507694,837.53,836.93,0.89259529]
[1766664175003,1.19507694,837.52,836.93,0.89259529]
[1766664175205,1.19507694,837.51,836.93,0.89259529]
[1766664175502,0.89364866,837.63,836.93,0.89259529]
[1766664175705,1.19507694,837.62,836.93,0.89259529]
[1766664175901,1.19507694,837.61,836.93,0.89259529]
[1766664176202,1.19507694,837.6,836.93,0.89259529]
[1766664176401,1.19507694,837.59,836.93,0.89259529]
[1766664176604,1.19507694,837.58,836.93,0.89259529]
[1766664176801,1.19507694,837.57,836.93,0.89259529]
[1766664177106,1.19507694,837.56,836.93,0.89259529]
[1766664177306,1.19507694,837.55,836.93,0.89259529]
[1766664177503,1.19507694,837.54,836.93,0.89259529]
[1766664177708,1.19507694,837.53,836.93,0.89259529]
[1766664177903,1.19507694,837.52,836.93,0.89259529]
[1766664178103,1.19507694,837.51,836.93,0.89259529]
[1766664178308,1.19507576,837.5,836.94,0.89259529]
[1766664178508,0.89364866,837.62,836.94,0.89259529]
[1766664178709,1.19507576,837.61,836.94,0.89259529]
[1766664178906,1.19507576,837.6,836.94,0.89259529]
[1766664179112,1.19507576,837.59,836.94,0.89259529]
[1766664179310,1.19507576,837.58,836.94,0.89259529]
[1766664179510,1.19507576,837.57,836.94,0.89259529]
[1766664179710,1.19507576,837.56,836.94,0.89259529]
[1766664179910,1.19507576,837.55,836.94,0.89259529]
[1766664180209,1.19507576,837.54,836.94,0.89259529]
[1766664180407,1.19507576,837.53,836.94,0.89259529]
[1766664180609,1.19507576,837.52,836.94,0.89259529]
[1766664180809,1.19507576,837.51,836.94,0.89259529]
[1766664181105,1.19507576,837.5,836.94,0.89259529]
[1766664181304,0.89364866,837.62,836.94,0.89259529]
[1766664181508,1.19507564,837.61,836.94,0.89259529]
[1766664181708,1.19507564,837.6,836.94,0.89259529]
[1766664181906,1.19507564,837.59,836.94,0.89259529]
[1766664182111,1.19507564,837.58,836.94,0.89259529]
[1766664182311,1.19507564,837.57,836.94,0.89259529]
[1766664182511,1.19507564,837.56,836.94,0.89259529]
[1766664182708,1.19507564,837.55,836.94,0.89259529]
[1766664183008,1.19507564,837.54,836.94,0.89259529]
[1766664183211,1.19507564,837.53,836.94,0.89259529]
[1766664183412,1.19507564,837.52,836.94,0.89259529]
[1766664183606,1.19507564,837.51,836.94,0.89259529]
[1766664183912,1.19507564,837.5,836.94,0.89259529]
[1766664184207,0.89364866,837.62,836.94,0.89259529]
[1766664184409,1.19507552,837.61,836.94,0.89259529]
[1766664184607,1.19507552,837.6,836.94,0.89259529]
[1766664184812,1.19507552,837.59,836.94,0.89259529]
[1766664185013,1.19507552,837.58,836.94,0.89259529]
[1766664185309,1.19507552,837.57,836.94,0.89259529]
[1766664185516,1.19507552,837.56,836.94,0.89259529]
[1766664185716,1.19507552,837.55,836.94,0.89259529]
[1766664186018,1.19507552,837.54,836.94,0.89259529]
[1766664186216,1.19507552,837.53,836.94,0.89259529]
[1766664186417,1.19507552,837.52,836.94,0.89259529]
[1766664186717,1.19507552,837.51,836.94,0.89259529]
[1766664186913,1.19507552,837.5,836.94,0.89259529]
[1766664187114,0.89364866,837.62,836.94,0.89259529]
[1766664187314,1.19507527,837.61,836.94,0.89259529]
[1766664187515,1.19507527,837.6,836.94,0.89259529]
[1766664187715,1.19507527,837.59,836.94,0.89259529]
[1766664187919,1.19507527,837.58,836.94,0.89259529]
[1766664188115,1.19507527,837.57,836.94,0.89259529]
[1766664188421,1.19507527,837.56,836.94,0.89259529]
[1766664188720,1.19507527,837.55,836.94,0.89259529]
[1766664188920,1.19507527,837.54,836.93,0.89259529]
[1766664189120,1.19507527,837.53,836.93,0.89259529]
[1766664189416,1.19507527,837.52,836.93,0.89259529]
[1766664189619,1.19507527,837.51,836.93,0.89259529]
[1766664189822,1.19507527,837.5,836.93,0.89259529]
[1766664190017,1.19507527,837.49,836.93,0.89259529]
[1766664190319,0.89364866,837.61,836.93,0.89259529]
[1766664190521,1.19508767,837.6,836.93,0.89259529]
[1766664190718,1.19508767,837.59,836.93,0.89259529]
[1766664190919,1.19508767,837.58,836.93,0.89259529]
[1766664191123,1.19508767,837.57,836.93,0.89259529]
[1766664191322,1.19508767,837.56,836.93,0.89259529]
[1766664191622,1.19508767,837.55,836.93,0.89259529]
[1766664191820,1.19508767,837.54,836.93,0.89259529]
[1766664192120,1.19508767,837.53,836.93,0.89259529]
[1766664192322,1.19508767,837.52,836.93,0.89259529]
[1766664192524,1.19508767,837.51,836.93,0.89259529]
[1766664192824,1.19508767,837.5,836.93,0.89259529]
[1766664193022,1.19508767,837.49,836.93,0.89259529]
[1766664193322,0.89364866,837.61,836.93,0.89259529]
[1766664193531,1.19508719,837.6,836.93,0.89259529]
[1766664193822,1.19508719,837.59,836.93,0.89259529]
[1766664194119,1.19508719,837.59,836.77,1.19097318]
[1766664194120,1.19508719,837.58,836.92,0.89259529]
[1766664194321,1.19508719,837.57,836.92,0.89259529]
[1766664194526,1.19508719,837.56,836.92,0.89259529]
[1766664194722,1.19508719,837.55,836.92,0.89259529]
[1766664195023,1.19508719,837.54,836.92,0.89259529]
[1766664195223,1.19508719,837.53,836.92,0.89259529]
[1766664195422,1.19508719,837.52,836.92,0.89259529]
[1766664195624,1.19508719,837.51,836.92,0.89259529]
[1766664195826,1.19508719,837.5,836.92,0.89259529]
[1766664196027,1.19508719,837.49,836.92,0.89259529]
[1766664196224,0.89364866,837.61,836.92,0.89259529]
[1766664196428,1.19508826,837.6,836.92,0.89259529]
[1766664196624,0.89364866,837.61,836.92,0.89259529]
[1766664196625,1.19508826,837.59,836.92,0.89259529]
[1766664196828,0.89364866,837.61,836.92,0.89259529]
[1766664196829,1.19508826,837.58,836.92,0.89608458]
[1766664197125,1.19508826,837.57,836.92,0.89608458]
[1766664197426,1.19508826,837.56,836.93,0.89608458]
[1766664197726,1.19508826,837.55,836.93,0.89608458]
[1766664197929,1.19508826,837.54,836.93,0.89608458]
[1766664198130,1.19508826,837.53,836.93,0.89608458]
[1766664198325,1.19508826,837.52,836.93,0.89608458]
[1766664198537,1.19508826,837.51,836.93,0.89608458]
[1766664198727,1.19508826,837.5,836.93,0.89608458]
[1766664198926,0.89620699,837.62,836.93,0.89608458]
[1766664199127,1.19507752,837.61,836.93,0.89608458]
[1766664199426,1.19507752,837.6,836.93,0.89608458]
[1766664199626,1.19507752,837.59,836.93,0.89608458]
[1766664199926,1.19507752,837.58,836.93,0.89608458]
[1766664200132,1.19507752,837.57,836.93,0.89608458]
[1766664200328,1.19507752,837.56,836.93,0.89608458]
[1766664200532,1.19507752,837.55,836.93,0.89608458]
[1766664200829,1.19507752,837.54,836.93,0.89608458]
[1766664201130,1.19507752,837.53,836.93,0.89608458]
[1766664201332,1.19507752,837.52,836.93,0.89608458]
[1766664201534,1.19507752,837.51,836.93,0.89608458]
[1766664201734,1.19507752,837.5,836.93,0.89608458]
[1766664201933,0.89620699,837.62,836.93,0.89608458]
[1766664202232,1.19507716,837.61,836.93,0.89608458]
[1766664202436,1.19507716,837.6,836.93,0.89608458]
[1766664202637,1.19507716,837.59,836.93,0.89608458]
[1766664202836,1.19507716,837.58,836.93,0.89608458]
[1766664203133,1.19507716,837.57,836.93,0.89608458]
[1766664203333,1.19507716,837.56,836.93,0.89608458]
[1766664203532,1.19507716,837.55,836.93,0.89608458]
[1766664203732,1.19507716,837.54,836.93,0.89608458]
[1766664203937,1.19507716,837.53,836.93,0.89608458]
[1766664204139,1.19507716,837.52,836.93,0.89608458]
[1766664204339,1.19507716,837.51,836.93,0.89608458]
[1766664204537,1.19507716,837.5,836.93,0.89608458]
[1766664204837,0.89620699,837.62,836.93,0.89608458]
[1766664205037,1.19507704,837.61,836.93,0.89608458]
[1766664205232,1.19507704,837.6,836.93,0.89608458]
[1766664205433,1.19507704,837.59,836.93,0.89608458]
[1766664205632,1.19507704,837.58,836.93,0.89608458]
[1766664205936,1.19507704,837.57,836.93,0.89608458]
[1766664206136,1.19507704,837.56,836.93,0.89608458]
[1766664206336,1.19507704,837.55,836.93,0.89608458]
[1766664206538,1.19507704,837.54,836.94,0.89608458]
[1766664206839,1.19507704,837.53,836.96,0.89608458]
[1766664207137,0.89620699,837.65,836.96,0.89608458]
[1766664207334,1.1950434,837.64,836.96,0.89608458]
[1766664207634,1.1950434,837.63,836.96,0.89608458]
[1766664207838,1.1950434,837.62,837.01,0.89608458]
[1766664208036,1.1950434,837.61,837.01,0.89608458]
[1766664208237,1.1950434,837.6,837.0,0.89608458]
[1766664208437,1.1950434,837.59,837.0,0.89608458]
[1766664208634,0.20779469,837.68,837.0,0.89608458]
[1766664208839,1.19496316,837.67,837.0,0.89608458]
[1766664209038,1.19496316,837.66,837.0,0.89608458]
[1766664209240,1.19496316,837.65,837.0,0.89608458]
[1766664209438,1.19496316,837.64,837.0,0.89608458]
[1766664209741,1.19496316,837.63,837.0,0.89608458]
[1766664209940,1.19496316,837.62,837.0,0.89608458]
[1766664210141,1.19496316,837.61,836.99,0.89608458]
[1766664210441,1.19496316,837.6,836.99,0.89608458]
[1766664210738,0.20779469,837.68,836.99,0.89608458]
[1766664210941,1.19496316,837.67,836.99,0.89608458]
[1766664211241,1.19496316,837.66,836.99,0.89608458]
[1766664211441,1.19496316,837.65,836.99,0.89608458]
[1766664211641,1.19496316,837.64,836.99,0.89608458]
[1766664211837,1.19496316,837.63,836.99,0.89608458]
[1766664212044,1.19496316,837.62,836.99,0.89608458]
[1766664212244,1.19496316,837.61,836.99,0.89608458]
[1766664212440,0.20779469,837.68,836.99,0.89608458]
[1766664212644,1.19496328,837.67,836.99,0.89608458]
[1766664212844,1.19496328,837.66,836.99,0.89608458]
[1766664213145,1.19496328,837.65,836.99,0.89608458]
[1766664213344,1.19496328,837.64,836.98,0.89608458]
[1766664213549,1.19496328,837.63,836.98,0.89608458]
[1766664213743,1.19496328,837.62,836.98,0.89608458]
[1766664214044,0.20779469,837.68,836.98,0.89608458]
[1766664214243,1.19496328,837.67,836.98,0.89608458]
[1766664214443,1.19496328,837.66,836.98,0.89608458]
[1766664214641,1.19496328,837.65,836.98,0.89608458]
[1766664214939,1.19496328,837.64,836.98,0.89608458]
[1766664215239,1.19496328,837.63,836.98,0.89608458]
[1766664215441,1.19496328,837.62,836.98,0.89608458]
[1766664215639,0.20779469,837.68,836.98,0.89608458]
[1766664215841,1.19496282,837.67,836.98,0.89608458]
[1766664216041,1.19496282,837.66,836.98,0.89608458]
[1766664216244,1.19496282,837.65,836.98,0.89608458]
[1766664216442,1.19496282,837.64,836.98,0.89608458]
[1766664216641,1.19496282,837.63,836.98,0.89608458]
[1766664216845,1.19496282,837.62,836.98,0.89608458]
[1766664217044,0.20779469,837.68,836.98,0.89608458]
[1766664217242,1.19496282,837.67,836.97,0.89608458]
[1766664217544,1.19496282,837.66,836.97,0.89608458]
[1766664217742,1.19496282,837.65,836.97,0.89608458]
[1766664218043,1.19496282,837.64,836.97,0.89608458]
[1766664218242,1.19496282,837.63,836.97,0.89608458]
[1766664218448,0.20779469,837.68,836.97,0.89608458]
[1766664218645,1.19496282,837.67,836.97,0.89608458]
[1766664218843,0.20779469,837.68,836.97,0.89608458]
[1766664218844,1.19496282,837.66,836.97,0.89608458]
[1766664219148,1.19496282,837.65,836.97,0.89608458]
[1766664219441,0.20779469,837.68,837.01,0.89608458]
[1766664219645,0.20779469,837.68,837.02,0.89608458]
[1766664221245,0.20779469,837.68,837.01,0.89608458]
[1766664222350,0.20779469,837.68,837.01,0.89427727]
[1766664224153,0.20779469,837.68,837.0,0.89427727]
[1766664231258,0.20779469,837.68,836.99,0.89427727]
[1766664231553,0.20779469,837.68,837.0,0.89427727]
[1766664234256,0.20779469,837.68,837.03,0.89427727]
[1766664244162,0.20779469,837.68,837.04,0.89427727]
[1766664244366,0.20779469,837.68,837.03,0.89427727]
[1766664245162,0.20779469,837.68,837.04,0.89427727]
[1766664249166,0.20779469,837.68,837.05,0.89427727]
[1766664251173,0.20779469,837.68,837.06,0.89427727]
[1766664257172,0.20779469,837.68,837.07,0.89427727]
[1766664259475,0.20779469,837.68,837.05,0.89427727]
[1766664262181,1.19487194,837.67,837.06,0.89427727]
[1766664262378,0.20779469,837.68,837.06,0.89427727]
[1766664262582,1.19487194,837.67,837.06,0.89427727]
[1766664262877,0.20779469,837.68,837.06,0.89427727]
[1766664263083,1.19487194,837.67,837.06,0.89427727]
[1766664263285,0.20779469,837.68,837.06,0.89427727]
[1766664263482,1.19487194,837.67,837.06,0.89427727]
[1766664263682,0.20779469,837.68,837.06,0.89427727]
[1766664263882,1.1948717,837.67,837.06,0.89427727]
[1766664264080,0.20779469,837.68,837.06,0.89427727]
[1766664264380,1.1948717,837.67,837.06,0.89427727]
[1766664264584,0.20779469,837.68,837.06,0.89427727]
[1766664264782,1.1948717,837.67,837.06,0.89427727]
[1766664264982,0.20779469,837.68,837.06,0.89427727]
[1766664265282,1.1948717,837.67,837.06,0.89427727]
[1766664265482,1.19487265,837.66,837.06,0.89427727]
[1766664265682,0.20779469,837.68,837.06,0.89427727]
[1766664265881,0.89471945,837.79,837.06,0.89427727]
[1766664265882,1.19487265,837.67,837.06,0.89427727]
[1766664266083,0.20777918,837.59,837.06,0.89427727]
[1766664268888,0.20777918,837.59,837.07,0.89427727]
[1766664276189,0.20777918,837.59,837.08,0.89427727]
[1766664281200,0.20777918,837.59,836.93,1.19097318]
[1766664281507,0.20777918,837.59,837.08,0.89538735]
[1766664313328,0.20777918,837.59,837.09,0.89538735]
[1766664326138,0.20777918,837.59,837.08,0.89538735]
[1766664326439,0.20777918,837.59,837.06,0.89538735]
[1766664338853,0.20777918,837.59,837.05,0.89538735]
[1766664339054,0.20777918,837.59,837.04,0.89538735]
[1766664344957,0.20777918,837.59,837.06,0.89538735]
[1766664356166,0.20777918,837.59,837.05,0.89538735]
[1766664357866,0.8958798,837.78,837.08,0.89538735]
[1766664358065,0.20776305,837.69,837.08,0.89538735]
[1766664358262,1.19482864,837.68,837.07,0.89538735]
[1766664362566,0.20776305,837.69,837.08,0.89538735]
[1766664365063,0.20776305,837.69,837.1,0.89538735]
[1766664365267,0.20776305,837.69,837.09,0.89538735]
[1766664372470,0.20776305,837.69,837.1,0.89538735]
[1766664373774,0.20776305,837.69,837.12,0.89538735]